{"text_format":"1","workbook":"xlsx","n_sheets":3,"sheets":["Sheet1","Sheet2","Sheet3"],"not_rendered":{"charts":0,"images":0,"macros":1,"external_links":0,"defined_names":0,"comments":0,"pivot_tables":0},"unopened":[],"bounds":{"document_bytes":16777216,"sheet_cells":100000,"rows_first":2000,"rows_last":500,"rows_between":2000,"halvings":0,"cell_chars":16384,"cell_head_chars":4096},"cells_cut":0,"cells_raw":0,"read":"whole","date_system":"1900"}

{"sheet":"Sheet1","index":0,"n_rows":103,"n_cols":4,"rows_kept":103,"cut":false,"hidden":false,"merged":[]}
[]
[null,null,"%","Grade"]
[null,null,0,{"$f":"LetterGradeFromNumber(C3)","v":"F"}]
[null,null,1,{"$f":"LetterGradeFromNumber(C4)","v":"F"}]
[null,null,2,{"$f":"LetterGradeFromNumber(C5)","v":"F"}]
[null,null,3,"F"]
[null,null,4,"F"]
[null,null,5,"F"]
[null,null,6,"F"]
[null,null,7,"F"]
[null,null,8,"F"]
[null,null,9,"F"]
[null,null,10,"F"]
[null,null,11,"F"]
[null,null,12,"F"]
[null,null,13,"F"]
[null,null,14,"F"]
[null,null,15,"F"]
[null,null,16,"F"]
[null,null,17,"F"]
[null,null,18,"F"]
[null,null,19,"F"]
[null,null,20,"F"]
[null,null,21,"F"]
[null,null,22,"F"]
[null,null,23,"F"]
[null,null,24,"F"]
[null,null,25,"F"]
[null,null,26,"F"]
[null,null,27,"F"]
[null,null,28,"F"]
[null,null,29,"F"]
[null,null,30,"F"]
[null,null,31,"F"]
[null,null,32,"F"]
[null,null,33,"F"]
[null,null,34,"F"]
[null,null,35,"F"]
[null,null,36,"F"]
[null,null,37,"F"]
[null,null,38,"F"]
[null,null,39,"F"]
[null,null,40,"F"]
[null,null,41,"F"]
[null,null,42,"F"]
[null,null,43,"F"]
[null,null,44,"F"]
[null,null,45,"F"]
[null,null,46,"F"]
[null,null,47,"F"]
[null,null,48,"F"]
[null,null,49,"F"]
[null,null,50,"F"]
[null,null,51,"F"]
[null,null,52,"F"]
[null,null,53,"F"]
[null,null,54,"F"]
[null,null,55,"F"]
[null,null,56,"F"]
[null,null,57,"F"]
[null,null,58,"F"]
[null,null,59,"F"]
[null,null,60,"D-"]
[null,null,61,"D-"]
[null,null,62,"D-"]
[null,null,63,"D"]
[null,null,64,"D"]
[null,null,65,"D"]
[null,null,66,{"$f":"LetterGradeFromNumber(C69)","v":"D"}]
[null,null,67,"D+"]
[null,null,68,"D+"]
[null,null,69,"D+"]
[null,null,70,"C-"]
[null,null,71,"C-"]
[null,null,72,"C-"]
[null,null,73,"C"]
[null,null,74,"C"]
[null,null,75,"C"]
[null,null,76,"C"]
[null,null,77,"C+"]
[null,null,78,"C+"]
[null,null,79,"C+"]
[null,null,80,"B-"]
[null,null,81,"B-"]
[null,null,82,"B-"]
[null,null,83,"B"]
[null,null,84,"B"]
[null,null,85,"B"]
[null,null,86,"B"]
[null,null,87,"B+"]
[null,null,88,"B+"]
[null,null,89,"B+"]
[null,null,90,"A-"]
[null,null,91,"A-"]
[null,null,92,"A-"]
[null,null,93,"A"]
[null,null,94,"A"]
[null,null,95,{"$f":"LetterGradeFromNumber(C98)","v":"A"}]
[null,null,96,{"$f":"LetterGradeFromNumber(C99)","v":"A"}]
[null,null,97,{"$f":"LetterGradeFromNumber(C100)","v":"A+"}]
[null,null,98,"A+"]
[null,null,99,"A+"]
[null,null,100,"A+"]

{"sheet":"Sheet2","index":1,"n_rows":0,"n_cols":0,"rows_kept":0,"cut":false,"hidden":false,"merged":[]}

{"sheet":"Sheet3","index":2,"n_rows":0,"n_cols":0,"rows_kept":0,"cut":false,"hidden":false,"merged":[]}